bitfinex-derivatives/quotes_ETHF0:USTF0_20250923
["timestamp","ask_amount","ask_price","bid_price","bid_amount"]
[1758644727742,0.3339,4191.5,4191.4,1.17908]
[1758644727932,0.5488,4191.5,4191.4,1.42208]
[1758644728136,0.1234,4192.5,4191.9,0.86353]
[1758644728137,1.31982,4192.0,4191.9,0.86353]
[1758644729137,1.83567838,4192.0,4191.9,0.86353]
[1758644729338,1.31982,4192.0,4191.9,0.4344]
[1758644729642,1.83553827,4192.0,4191.9,0.4344]
[1758644730037,1.31982,4192.0,4191.9,0.4344]
[1758644730243,0.76302,4192.0,4191.9,1.17903]
[1758644730547,0.3339,4192.0,4191.9,1.17903]
[1758644730845,0.8918,4192.0,4191.9,0.4344]
[1758644731443,0.8918,4192.0,4191.9,0.7499]
[1758644732645,0.8918,4192.0,4191.9,0.4344]
[1758644733242,0.8918,4192.0,4191.9,0.86353]
[1758644733446,1.32092,4192.0,4191.9,0.86353]
[1758644734150,0.8918,4192.0,4191.9,0.86353]
[1758644734541,1.32092,4192.0,4191.9,0.86353]
[1758644735048,0.8918,4192.0,4191.9,0.86353]
[1758644735350,0.5524,4192.5,4192.4,1.17898]
[1758644735847,0.8863,4192.5,4192.4,1.17898]
[1758644737049,0.8863,4192.5,4192.4,0.86348]
[1758644740645,0.8863,4192.5,4192.4,1.17898]
[1758644741848,0.8863,4192.5,4192.4,0.86348]
[1758644742046,0.8863,4192.5,4192.3,0.67209]
[1758644742047,0.85808,4192.4,4192.3,0.67209]
[1758644742246,1.19198,4192.4,4192.3,0.67209]
[1758644743254,1.19198,4192.4,4192.3,0.89519]
[1758644743647,0.7629,4192.4,4192.3,0.89519]
[1758644744048,1.19198,4192.4,4192.3,0.89519]
[1758644745551,0.7629,4192.4,4192.3,1.10649]
[1758644745750,0.5488,4192.4,4192.3,1.42199]
[1758644746454,0.3339,4192.4,4192.3,1.42199]
[1758644747756,0.5488,4192.4,4192.3,1.42199]
[1758644749651,0.7629,4192.4,4192.3,1.42199]
[1758644750159,0.7629,4191.8,4191.7,4.10305]
[1758644750458,1.19204,4191.8,4191.7,4.10305]
[1758644750661,1.19204,4191.8,4191.7,3.6739]
[1758644750954,0.5488,4191.2,4191.1,3.6422]
[1758644751161,0.5488,4191.2,4191.1,4.62991]
[1758644752356,0.7629,4191.2,4191.1,4.31441]
[1758644752563,0.7629,4191.2,4191.1,4.07141]
[1758644752859,0.7629,4191.2,4191.1,4.31441]
[1758644752860,1.1921,4191.2,4191.1,4.31441]
[1758644753552,0.7629,4191.2,4191.1,4.31441]
[1758644753951,0.7629,4191.2,4191.1,4.62881]
[1758644754153,0.7629,4191.2,4191.1,4.38581]
[1758644754359,0.7629,4191.2,4191.1,4.62881]
[1758644754556,0.5488,4191.2,4191.1,4.62881]
[1758644755057,0.3339,4191.2,4191.1,4.62881]
[1758644755255,0.3123,4192.0,4191.9,0.42913]
[1758644755553,0.94938,4192.4,4192.3,1.15929]
[1758644755760,0.94938,4192.4,4192.3,1.40229]
[1758644756361,1.15228,4192.4,4192.3,0.6588]
[1758644756762,1.15228,4192.4,4192.3,1.08789]
[1758644757253,1.15228,4192.4,4192.3,0.6588]
[1758644758459,1.15228,4192.4,4192.3,0.4476]
[1758644761169,1.15228,4192.4,4192.3,0.87669]
[1758644761361,0.7232,4192.4,4192.3,1.40229]
[1758644761664,0.3123,4192.4,4192.3,1.40229]
[1758644762667,0.5203,4192.4,4192.3,1.40229]
[1758644764057,0.1289,4193.0,4192.9,0.42903]
[1758644764265,0.63698,4193.4,4193.3,0.84479]
[1758644764468,0.83988,4193.4,4193.3,0.84479]
[1758644764766,1.15218,4193.4,4193.3,0.4158]
[1758644765167,1.15218,4193.4,4193.3,0.84479]
[1758644765666,0.7232,4193.4,4193.3,0.4158]
[1758644766664,0.7232,4193.4,4193.2,0.243]
[1758644766665,0.42899,4193.3,4193.2,0.243]
[1758644766857,0.1316,4192.5,4192.4,0.74347]
[1758644767060,0.1316,4193.0,4192.6,0.42905]
[1758644767261,0.208,4192.8,4192.7,0.42905]
[1758644767470,0.5203,4192.8,4192.7,0.84485]
[1758644768167,0.83996,4192.6,4192.5,0.2046]
[1758644768361,0.7232,4192.6,4192.5,0.4476]
[1758644768564,0.7232,4192.6,4192.5,0.6588]
[1758644769268,0.42907,4192.5,4192.3,3.2078]
[1758644769464,0.7232,4192.4,4192.3,3.2078]
[1758644769664,1.15229,4192.3,4192.2,0.243]
[1758644772566,0.85123,4191.9,4191.8,3.63694]
[1758644772770,0.42917,4191.6,4191.3,3.5234]
[1758644772975,0.7338,4191.4,4191.3,3.4273]
[1758644773177,0.7338,4191.4,4191.3,3.6703]
[1758644773870,0.7338,4191.4,4191.3,3.4508]
[1758644774074,0.7338,4191.4,4191.3,0.243]
[1758644774279,0.7338,4190.9,4190.8,3.4508]
[1758644774574,1.16303,4190.9,4190.8,3.4508]
[1758644774770,0.4221,4190.9,4190.3,3.2078]
[1758644774971,1.16309,4190.4,4190.3,3.4508]
[1758644775477,0.7338,4190.4,4190.3,3.4508]
[1758644775677,0.527,4190.4,4190.3,4.1921]
[1758644775879,3.5195,4191.2,4191.1,0.7413]
[1758644776071,3.5195,4191.2,4190.5,0.091]
[1758644776072,0.42923,4191.0,4190.8,3.4508]
[1758644776372,0.42923,4191.0,4190.8,3.2078]
[1758644776373,0.7338,4190.9,4190.8,3.2078]
[1758644776572,0.7338,4190.9,4190.8,0.243]
[1758644777474,0.56353,4191.0,4190.6,0.4625]
[1758644777475,0.7338,4190.7,4190.6,0.4625]
[1758644778269,0.7338,4190.7,4190.6,0.243]
[1758644779180,0.7338,4190.7,4190.6,0.9843]
[1758644779373,0.446,4191.0,4190.8,0.42923]
[1758644779681,0.74093,4191.0,4190.9,0.9843]
[1758644780074,4.16398,4191.4,4191.3,0.4257]
[1758644780274,4.37078,4191.4,4191.3,0.4257]
[1758644781478,1.16298,4191.4,4191.3,0.4257]
[1758644784776,1.16298,4191.4,4191.3,0.7304]
[1758644785084,1.16298,4191.4,4191.3,0.4257]
[1758644787075,0.767,4191.1,4191.0,0.2081]
[1758644787275,1.19623,4190.9,4190.8,3.4159]
[1758644787579,0.767,4190.9,4190.8,4.08814]
[1758644787883,0.99497,4191.5,4191.4,0.2081]
[1758644788483,1.33047,4191.5,4191.4,0.2081]
[1758644789479,0.9013,4191.5,4191.4,0.85548]
[1758644789673,0.98794,4191.8,4191.7,1.16015]
[1758644790077,1.19614,4191.8,4191.7,0.85545]
[1758644791078,0.767,4191.8,4191.7,0.85545]
[1758644791585,1.19614,4191.8,4191.7,0.85545]
[1758644791783,1.19614,4191.8,4191.7,1.09845]
[1758644792281,1.19614,4191.8,4191.7,0.85545]
[1758644792480,0.767,4191.8,4191.7,0.85545]
[1758644793083,0.767,4191.8,4191.7,1.16015]
[1758644793282,0.4698,4192.0,4191.9,0.73383]
[1758644793582,0.767,4192.2,4192.1,0.8554]
[1758644793893,1.1961,4192.2,4192.1,0.8554]
[1758644794786,0.767,4192.2,4192.1,0.8554]
[1758644794987,0.5588,4192.2,4192.1,1.1601]
[1758644795179,0.9879,4192.2,4192.1,1.1601]
[1758644795884,1.1961,4192.2,4192.1,0.8554]
[1758644796279,0.767,4192.2,4192.1,0.8554]
[1758644796485,1.1961,4192.2,4192.1,0.8554]
[1758644797878,1.1961,4192.2,4192.1,0.4263]
[1758644798082,1.1961,4192.2,4192.1,0.63721]
[1758644798384,1.19611,4192.1,4192.0,0.4511]
[1758644798579,1.19611,4192.1,4192.0,1.09842]
[1758644798781,0.767,4192.1,4192.0,1.09842]
[1758644799679,0.767,4192.1,4192.0,1.40312]
[1758644802187,0.3576,4192.5,4192.4,0.42908]
[1758644802385,4.06833,4192.9,4192.8,0.2081]
[1758644802583,4.06833,4192.9,4192.8,0.67204]
[1758644802785,4.40383,4192.9,4192.8,0.67204]
[1758644803686,3.9748,4192.9,4192.8,0.67204]
[1758644803881,0.767,4192.9,4192.8,0.88014]
[1758644804081,0.5588,4192.9,4192.8,1.40304]
[1758644804386,0.767,4192.9,4192.8,1.09834]
[1758644805189,0.5588,4192.9,4192.8,1.40304]
[1758644805991,0.767,4192.9,4192.8,1.09834]
[1758644809391,1.19603,4192.9,4192.8,1.09834]
[1758644809588,0.767,4192.9,4192.8,1.09834]
[1758644810696,0.767,4192.9,4192.8,0.85534]
[1758644810995,0.767,4192.9,4192.8,1.09834]
[1758644812788,1.19603,4192.9,4192.8,1.09834]
[1758644812991,0.767,4192.9,4192.8,1.09834]
[1758644813990,0.767,4192.9,4192.8,1.41354]
[1758644814900,0.767,4192.9,4192.8,1.17054]
[1758644815098,0.767,4192.9,4192.8,1.41354]
[1758644816194,0.767,4192.9,4192.8,1.09834]
[1758644817496,1.19603,4192.9,4192.8,0.6693]
[1758644817791,1.00477,4192.5,4192.4,3.2078]
[1758644817996,1.33977,4192.5,4192.4,3.2078]
[1758644819692,0.76403,4192.9,4192.4,3.6427]
[1758644819892,0.98633,4192.9,4192.8,0.7501]
[1758644820093,0.98633,4192.9,4192.8,1.42214]
[1758644820293,1.20553,4192.9,4192.8,0.4654]
[1758644820594,1.20553,4192.9,4192.8,0.243]
[1758644821596,0.7765,4192.9,4192.8,1.10694]
[1758644821790,0.7765,4192.9,4192.8,1.42214]
[1758644822098,0.7765,4192.9,4192.8,1.10694]
[1758644822301,0.7765,4192.9,4192.8,0.67204]
[1758644822693,0.7765,4192.9,4192.8,0.89444]
[1758644823196,1.20553,4192.9,4192.8,0.89444]
[1758644823398,0.7765,4192.9,4192.8,1.10694]
[1758644824211,1.20553,4192.9,4192.8,1.10694]
[1758644824706,1.20553,4192.9,4192.8,0.89444]
[1758644825411,0.7765,4192.9,4192.8,0.89444]
[1758644825707,3.2078,4193.3,4192.8,0.6779]
[1758644826009,0.7765,4193.3,4193.2,1.1791]
[1758644826206,1.20549,4193.3,4193.2,0.2224]
[1758644826405,1.2055,4193.2,4193.1,0.243]
[1758644826610,1.2055,4193.2,4193.1,0.89441]
[1758644827513,1.2055,4193.2,4193.1,1.10691]
[1758644827813,0.7765,4193.2,4193.1,0.89441]
[1758644828001,0.7765,4193.2,4193.1,1.10691]
[1758644828514,0.7765,4193.2,4193.1,0.89441]
[1758644829907,3.2078,4193.8,4193.7,0.42895]
[1758644830110,0.5573,4193.8,4193.7,1.42205]
[1758644834017,0.3419,4194.5,4194.4,0.7395]
[1758644834218,0.552,4194.5,4194.4,0.4249]
[1758644834411,0.8621,4194.5,4194.4,0.4249]
[1758644835407,0.3101,4194.5,4194.4,0.7395]
[1758644835707,0.5178,4194.5,4194.4,0.7395]
[1758644836216,0.1342,4195.0,4194.6,0.7395]
[1758644836217,0.5178,4194.7,4194.6,0.7395]
[1758644836412,0.3101,4194.7,4194.6,4.1903]
[1758644837021,0.3419,4195.0,4194.9,0.4249]
[1758644837209,0.8621,4195.0,4194.9,0.6679]
[1758644838721,0.8621,4195.0,4194.9,1.09672]
[1758644839321,1.29091,4195.0,4194.9,0.243]
[1758644840716,0.94664,4194.7,4194.6,3.2078]
[1758644840911,1.1568,4194.2,4194.1,3.2078]
[1758644841519,0.84673,4193.9,4193.8,0.243]
[1758644841713,1.15683,4193.9,4193.8,0.243]
[1758644844118,0.86128,4193.4,4193.3,0.85298]
[1758644844423,0.7531,4193.4,4193.3,1.09598]
[1758644845123,0.7531,4193.4,4193.3,1.41108]
[1758644845915,0.4323,4193.9,4193.8,0.86803]
[1758644846519,0.7531,4193.9,4193.8,0.86803]
[1758644847020,3.5286,4194.2,4194.1,0.96401]
[1758644847217,3.5286,4194.2,4194.1,1.42611]
[1758644847418,0.5292,4194.2,4194.1,1.42611]
[1758644847819,0.7531,4194.2,4194.1,1.11101]
[1758644848212,1.182,4194.2,4194.1,0.6821]
[1758644848417,1.182,4194.2,4194.1,0.67191]
[1758644849027,1.182,4194.2,4194.1,0.89191]
[1758644849624,1.182,4194.2,4194.1,0.243]
[1758644850026,0.7531,4194.2,4194.1,0.89191]
[1758644852123,1.182,4194.2,4194.1,0.463]
[1758644852623,0.7531,4194.2,4194.1,0.89191]
[1758644853123,1.182,4194.2,4194.1,1.11101]
[1758644853425,0.7531,4194.2,4194.1,1.11101]
[1758644853827,1.182,4194.2,4194.1,1.11101]
[1758644854131,0.7531,4194.2,4194.1,1.11101]
[1758644855135,1.18199,4194.2,4194.1,1.11101]
[1758644855329,0.7531,4194.2,4194.1,1.11101]
[1758644855833,1.182,4194.2,4194.1,0.6821]
[1758644856133,0.7531,4194.2,4194.1,0.89191]
[1758644856634,0.7531,4194.2,4194.1,1.11101]
[1758644858029,0.7531,4194.2,4194.1,1.42611]
[1758644858532,0.3208,4194.2,4194.1,1.42611]
[1758644858733,0.3208,4194.5,4194.4,1.18307]
[1758644858935,0.5292,4194.5,4194.4,1.42507]
[1758644859335,0.8834,4194.5,4194.4,1.42507]
[1758644859534,0.8834,4194.5,4194.4,1.10997]
[1758644859938,1.31226,4194.5,4194.4,0.242]
[1758644860833,0.7531,4193.8,4193.7,3.4278]
[1758644861540,1.18204,4193.8,4193.7,3.2078]
[1758644861833,0.7531,4193.8,4193.7,3.85675]
[1758644863530,0.5292,4193.8,4193.7,4.39095]
[1758644863736,0.4511,4194.0,4193.9,1.18313]
[1758644864227,1.31232,4194.0,4193.9,0.86803]
[1758644864431,1.31232,4194.0,4193.9,0.64893]
[1758644864635,1.18203,4193.9,4193.8,0.42894]
[1758644865638,1.18203,4193.9,4193.8,0.64894]
[1758644865938,0.7531,4193.9,4193.8,0.64894]
[1758644866235,0.7531,4193.9,4193.8,0.86804]
[1758644866436,0.42894,4193.8,4193.7,3.63675]
[1758644866637,1.18204,4193.8,4193.7,3.63675]
[1758644866829,0.7531,4193.8,4193.7,3.85675]
[1758644867032,0.7531,4193.8,4193.7,4.07585]
[1758644867231,0.7531,4193.8,4193.7,4.39095]
[1758644867432,0.7531,4193.8,4193.7,4.07585]
[1758644867640,1.18204,4193.8,4193.7,4.07585]
[1758644868041,0.7531,4193.8,4193.7,4.07585]
[1758644869638,1.18204,4193.8,4193.7,4.07585]
[1758644869839,0.7531,4193.8,4193.7,4.07585]
[1758644870039,0.7531,4193.8,4193.7,4.39095]
[1758644870235,0.5292,4193.8,4193.7,4.39095]
[1758644870635,3.9609,4194.4,4194.3,0.22]
[1758644870837,0.7531,4194.1,4193.8,0.42894]
[1758644871139,0.7531,4193.9,4193.8,0.86804]
[1758644872744,0.7531,4193.9,4193.8,1.11004]
[1758644873847,1.18203,4193.9,4193.8,1.11004]
[1758644874250,0.7531,4193.9,4193.8,1.11004]
[1758644877649,0.7531,4193.9,4193.8,1.42464]
[1758644879151,0.7531,4193.9,4193.8,1.11004]
[1758644879549,0.7531,4193.9,4193.6,0.42896]
[1758644879754,0.1303,4194.0,4193.6,0.42896]
[1758644879755,0.7252,4193.7,4193.6,0.42896]
[1758644880049,0.7252,4193.7,4193.6,0.63136]
[1758644880652,1.15415,4193.7,4193.6,0.63136]
[1758644881053,0.7252,4193.7,4193.6,1.14916]
[1758644881954,1.15415,4193.7,4193.6,1.14916]
[1758644882753,0.1303,4194.0,4193.9,0.42893]
[1758644882754,0.55922,4194.0,4193.9,0.42893]
[1758644882961,0.51198616,4194.0,4193.9,1.14913]
[1758644883362,0.81608616,4194.0,4193.9,1.14913]
[1758644883762,1.02008616,4194.0,4193.9,1.14913]
[1758644883965,1.79788843,4194.0,4193.9,0.63133]
[1758644884262,1.79788843,4194.0,4193.9,0.2024]
[1758644884459,1.79788843,4194.0,4193.8,0.42894]
[1758644884460,1.15413,4193.9,4193.8,0.42894]
[1758644885056,1.15413,4193.9,4193.8,0.63134]
[1758644885761,1.15413,4193.9,4193.8,0.83454]
[1758644885957,1.66617107,4193.9,4193.8,0.83454]
[1758644886862,1.15413,4193.9,4193.8,0.83454]
[1758644887060,1.66619801,4193.9,4193.8,0.83454]
[1758644887262,1.66621514,4193.9,4193.8,0.83454]
[1758644888170,1.23728514,4193.9,4193.8,0.83454]
[1758644888360,1.66621514,4193.9,4193.8,0.83454]
[1758644890268,1.23728514,4193.9,4193.8,0.83454]
[1758644891472,1.66621514,4193.9,4193.8,0.83454]
[1758644892567,1.66621514,4193.9,4193.8,0.4056]
[1758644892968,1.66621514,4193.9,4193.8,0.83454]
[1758644893574,1.66621514,4193.9,4193.8,1.14804]
[1758644894078,1.66621514,4193.9,4193.8,0.83454]
[1758644896073,1.66621514,4193.9,4193.8,0.4056]
[1758644896276,1.66621514,4193.9,4193.8,0.83454]
[1758644897172,1.23728514,4193.9,4193.8,0.83454]
[1758644897378,0.42888,4194.4,4193.8,0.83454]
[1758644897675,0.4456,4194.5,4194.4,0.42887]
[1758644897876,0.3153,4194.5,4194.4,1.40067]
[1758644898080,0.82770233,4194.5,4194.4,1.40067]
[1758644898274,0.3153,4194.5,4194.4,1.40067]
[1758644898971,3.7332,4194.9,4194.8,0.84513]
[1758644899173,3.7332,4194.9,4194.8,1.40063]
[1758644899470,0.5254,4194.9,4194.8,1.40063]
[1758644899873,1.16182,4194.9,4194.8,0.6583]
[1758644900278,0.733,4194.9,4194.8,1.08713]
[1758644901480,1.16182,4194.9,4194.8,1.08713]
[1758644901876,0.733,4194.9,4194.8,1.08713]
[1758644902480,0.733,4194.9,4194.8,1.40063]
[1758644903471,0.5254,4194.9,4194.8,1.40063]
[1758644908482,0.7436,4194.9,4194.8,1.08713]
[1758644909182,0.7436,4194.9,4194.8,1.40213]
[1758644909383,1.17242,4194.9,4194.8,1.40213]
[1758644909586,0.7436,4194.9,4194.8,1.40213]
[1758644910585,0.5254,4194.9,4194.8,1.40213]
[1758644911385,0.7436,4194.9,4194.8,1.40213]
[1758644911581,0.7436,4194.9,4194.8,1.08713]
[1758644912283,0.7436,4194.9,4194.8,1.40213]
[1758644919284,1.17242,4194.9,4194.8,1.40213]
[1758644921485,1.17242,4194.9,4194.8,0.9733]
[1758644921684,1.17242,4194.9,4194.8,1.08713]
[1758644922386,1.07212,4194.7,4194.1,3.5228]
[1758644922591,0.3114,4193.3,4193.1,4.92784286]
[1758644922892,0.7389,4193.3,4193.2,1.091]
[1758644923291,1.16789,4193.3,4193.2,0.662]
[1758644923886,1.16789,4193.3,4193.2,0.4526]
[1758644924995,0.7389,4193.2,4193.1,3.2078]
[1758644926597,0.7389,4193.2,4193.1,3.4184]
[1758644926798,0.7389,4193.2,4193.1,3.6278]
[1758644929603,1.1679,4193.2,4193.1,3.6278]
[1758644930600,1.1679,4193.2,4193.1,3.9428]
[1758644931394,1.1679,4193.2,4193.1,3.6278]
[1758644932294,1.1679,4193.2,4193.1,0.42]
[1758644933594,1.1679,4193.2,4193.1,0.2106]
[1758644934803,0.55522,4193.0,4192.9,0.242]
[1758644935104,1.18735,4192.7,4192.6,3.4167]
[1758644935305,1.18735,4192.7,4192.6,0.2089]
[1758644936300,1.18735,4192.7,4192.6,0.84036]
[1758644936804,1.18735,4192.7,4192.6,1.15576]
[1758644937898,0.7583,4192.7,4192.6,1.15576]
[1758644939200,1.18735,4192.7,4192.6,0.7267]
[1758644939496,1.18735,4192.7,4192.6,0.2089]
[1758644939696,1.18739,4192.3,4192.2,0.6533]
[1758644940497,1.18739,4192.3,4192.1,3.63691]
[1758644940498,0.4291,4192.2,4192.1,3.2078]
[1758644940803,0.1262,4192.5,4192.1,3.2078]
[1758644940804,0.3168,4192.4,4192.3,0.94689]
[1758644941006,0.5379,4192.8,4192.7,0.84035]
[1758644941309,0.5379,4192.8,4192.7,1.15575]
[1758644943010,1.18734,4192.8,4192.7,0.84035]
[1758644944513,0.42906,4192.6,4192.5,0.42906]
[1758644944711,1.18736,4192.6,4192.5,0.63797]
[1758644944908,1.18736,4192.6,4192.5,0.2089]
[1758644945108,1.1874,4192.2,4192.1,3.4167]
[1758644945409,1.1874,4192.2,4191.0,1.81074286]
[1758644945410,1.18745,4191.7,4191.6,3.4167]
[1758644945610,1.18745,4191.7,4191.6,3.2078]
[1758644946708,1.18745,4191.7,4191.6,3.63696]
[1758644947104,0.443,4192.0,4191.9,0.42913]
[1758644947308,0.3168,4192.0,4191.9,1.15583]
[1758644947714,3.5551,4192.5,4192.4,0.42908]
[1758644948016,0.6641,4192.5,4192.4,1.15578]
[1758644949211,0.6641,4192.5,4192.4,0.84038]
[1758644949212,1.31357,4192.5,4192.4,0.84038]
[1758644949417,0.8845,4192.5,4192.4,0.84038]
[1758644949710,0.8845,4192.5,4192.4,1.15578]
[1758644950505,0.00815132,4192.6,4192.2,3.2078]
[1758644950506,0.00815132,4192.6,4192.5,0.42907]
[1758644950713,1.19551132,4192.6,4192.5,0.84037]
[1758644950913,1.19551132,4192.6,4192.5,0.4113]
[1758644951817,1.19551132,4192.6,4192.5,0.84037]
[1758644952321,0.76645132,4192.6,4192.5,1.15567]
[1758644952512,0.00815132,4192.6,4192.5,1.15567]
[1758644954019,0.31705132,4192.6,4192.5,1.15567]
[1758644954226,0.00815132,4192.6,4192.5,1.16967]
[1758644956213,0.31705132,4192.6,4192.5,1.16967]
[1758644956518,0.53405132,4192.6,4192.5,1.16967]
[1758644957225,0.31705132,4192.6,4192.5,1.16967]
[1758644958918,0.53405132,4192.6,4192.5,1.16967]
[1758644961920,0.74075132,4192.6,4192.5,1.16967]
[1758644962722,0.53405132,4192.6,4192.5,1.16967]
[1758644963620,0.74075132,4192.6,4192.5,1.16967]
[1758644965915,0.53405132,4192.6,4192.5,1.16967]
[1758644966315,0.3186,4193.0,4192.9,1.17743]
[1758644967924,0.5302,4193.0,4192.9,1.17743]
[1758644968131,0.6634,4193.0,4192.9,1.17743]
[1758644969134,0.8718,4193.0,4192.9,1.17743]
[1758644969433,0.8718,4193.0,4192.9,0.86223]
[1758644969825,0.8718,4193.0,4192.9,0.42903]
[1758644970229,1.16764,4192.8,4192.7,3.4498]
[1758644970935,1.16764,4192.8,4192.7,3.2078]
[1758644971730,1.16769,4192.3,4192.2,3.2078]
[1758644971936,0.98232,4192.0,4191.8,0.42914]
[1758644972232,0.7386,4191.9,4191.8,0.2135]
[1758644972532,1.16773,4191.9,4191.8,0.2135]
[1758644972829,1.16774,4191.8,4191.7,3.2078]
[1758644973235,6.16774,4191.8,4191.7,3.2078]
[1758644975338,0.3186,4191.8,4191.7,3.9562]
[1758644975538,0.1332,4192.0,4191.7,3.9562]
[1758644975539,0.5302,4191.9,4191.8,1.17754]
[1758644977837,0.7386,4191.9,4191.8,1.17754]
[1758644978536,0.7386,4191.9,4191.8,0.4332]
[1758644978938,0.7386,4191.9,4191.8,0.7484]
[1758644979142,0.7386,4191.9,4191.8,0.4332]
[1758644979939,0.7386,4191.9,4191.8,0.7484]
[1758644980138,0.7386,4191.9,4191.8,0.4332]
[1758644980738,1.16773,4191.9,4191.8,0.4332]
[1758644981138,1.16773,4191.9,4191.8,0.86234]
[1758644981344,0.7386,4191.9,4191.8,0.86234]
[1758644981754,1.16773,4191.9,4191.8,0.4332]
[1758644981953,0.42914,4191.8,4191.7,3.2078]
[1758644982149,1.16774,4191.8,4191.7,3.2078]
[1758644984058,1.40974,4191.8,4191.7,3.2078]
[1758644984555,0.42917,4191.5,4191.4,0.42918]
[1758644984755,0.98237,4191.5,4191.4,0.42918]
[1758644984959,1.30097,4191.5,4191.4,0.42918]
[1758644985858,1.30097,4191.5,4191.4,0.2135]
[1758644986251,1.30097,4191.5,4191.4,0.64268]
[1758644988958,1.30097,4191.5,4191.4,0.42918]
[1758644989158,1.16779,4191.3,4191.2,3.2078]
[1758644990261,0.42922,4191.0,4190.9,0.42923]
[1758644990558,1.30102,4191.0,4190.9,0.86243]
[1758644991658,1.30102,4191.0,4190.9,0.4332]
[1758644993564,0.42924,4190.8,4190.7,3.4498]
[1758644993760,1.17164,4190.8,4190.7,4.09855]
[1758644994161,1.17164,4190.8,4190.7,3.4273]
[1758644995267,1.17164,4190.8,4190.7,3.2078]
[1758644995465,1.30058,4190.5,4190.4,0.2195]
[1758644996461,1.17169,4190.3,4190.2,3.4273]
[1758644997357,1.17169,4190.3,4190.2,3.8566]
[1758644997556,1.17169,4190.3,4190.2,3.6298]
[1758644998070,0.7424,4190.3,4190.2,4.0591]
[1758644998367,0.3125,4190.3,4190.2,4.3745]
[1758644998761,0.5218,4190.3,4190.2,4.3745]
[1758644999272,1.17169,4190.3,4190.2,3.6298]
[1758644999461,1.17169,4190.3,4190.2,4.0591]
[1758644999768,1.17169,4190.3,4190.2,3.6298]
[1758644999968,1.17169,4190.3,4190.2,4.0591]
[1758645000164,1.17169,4190.3,4190.2,3.6298]
[1758645000870,1.17169,4190.3,4190.2,0.8513]
[1758645001170,0.7424,4190.3,4190.2,1.1667]
[1758645001571,0.5218,4190.3,4190.2,1.1667]
[1758645001768,0.3125,4190.3,4190.2,1.1667]
[1758645004568,0.3125,4190.9,4190.8,1.16664]
[1758645004766,0.8756,4191.5,4191.4,0.85118]
[1758645004971,0.8756,4191.5,4191.4,1.16658]
[1758645005167,0.8756,4191.5,4191.4,0.7374]
[1758645005168,1.30477,4191.5,4191.4,0.7374]
[1758645005473,1.30477,4191.5,4191.4,0.422]
[1758645005677,1.30477,4191.5,4191.4,0.2195]
[1758645006369,0.8756,4191.5,4191.4,0.64868]
[1758645006568,0.8756,4191.5,4191.4,0.85118]
[1758645007058,1.1176,4191.5,4191.4,0.85118]
[1758645007975,0.7424,4190.9,4190.8,0.85124]
[1758645008170,0.7424,4190.9,4190.8,1.16664]
[1758645008373,0.5218,4191.2,4191.1,1.16661]
[1758645008575,1.1716,4191.2,4191.1,0.7374]
[1758645008783,1.17164,4190.8,4190.7,3.2078]
[1758645009068,0.1289,4191.0,4190.3,0.2195]
[1758645009069,0.63859,4190.4,4190.3,0.2195]
[1758645009369,1.17174,4189.9,4189.8,0.2195]
[1758645009577,0.85924,4189.9,4189.7,3.2078]
[1758645009780,0.7424,4189.8,4189.7,3.2078]
[1758645011476,0.7424,4189.8,4189.7,3.4273]
[1758645011766,0.7424,4189.8,4189.7,3.6328]
[1758645012963,0.4254,4189.4,4189.3,0.2202]
[1758645013169,0.7434,4189.4,4189.3,0.2202]
[1758645014869,0.4294,4189.3,4189.2,3.2078]
[1758645015074,1.1728,4189.3,4189.2,3.2078]
[1758645015277,1.1728,4189.3,4189.2,3.428]
[1758645017469,1.1728,4189.3,4189.2,0.2202]
[1758645017967,0.42942,4189.1,4189.0,0.89163]
[1758645018274,1.17282,4189.1,4189.0,0.89163]
[1758645018777,1.17282,4189.1,4189.0,0.7413]
[1758645018968,1.17282,4189.1,4189.0,1.17073]
[1758645019664,0.7434,4189.1,4189.0,1.17073]
[1758645020675,1.17282,4189.1,4189.0,1.17073]
[1758645022065,0.7434,4189.1,4189.0,1.17073]
[1758645022269,1.17282,4189.1,4189.0,1.17073]
[1758645023677,0.7434,4189.1,4189.0,1.17073]
[1758645023974,1.17282,4189.1,4189.0,1.17073]
[1758645024668,1.17282,4189.1,4189.0,0.7413]
[1758645024869,0.7595,4188.8,4188.7,3.63726]
[1758645025078,0.5434,4188.8,4188.7,4.35476]
[1758645027071,0.97285,4188.8,4188.7,4.35476]
[1758645027271,0.5434,4188.8,4188.7,4.35476]
[1758645027466,0.1331,4189.0,4188.7,3.9253]
[1758645027673,0.3339,4189.5,4189.4,1.14689]
[1758645028473,3.5417,4189.8,4189.7,0.42936]
[1758645028777,3.7512,4189.8,4189.7,1.14686]
[1758645029471,3.7512,4189.8,4189.7,0.7175]
[1758645029675,3.7512,4189.8,4189.7,1.14686]
[1758645030779,0.5434,4189.8,4189.7,1.14686]
[1758645031477,1.18885,4189.8,4189.7,0.7175]
[1758645032285,0.7595,4189.8,4189.7,1.14686]
[1758645033484,0.7595,4190.4,4190.3,0.2109]
[1758645033677,1.0015,4190.4,4190.3,0.2109]
[1758645033982,0.5759,4190.4,4190.0,0.2109]
[1758645034284,1.18881,4190.1,4190.0,0.2109]